[Event "*** Titled Tuesday Blitz"]
[Site "Chess.com"]
[Date "2020.11.03"]
[Round "9"]
[White "Kildepiotr"]
[Black "S2PAc"]
[Result "1-0"]
[WhiteElo "2681"]
[BlackElo "2835"]
[TimeControl "180+1"]
[EndTime "11:49:28 PST"]
[Termination "Kildepiotr won by resignation"]

1. Nf3 {[%clk 0:03:00.9]} 1... d5 {[%clk 0:02:59]} 2. g3 {[%clk 0:03:01.1]} 2...
g6 {[%clk 0:02:59.6]} 3. Bg2 {[%clk 0:03:01.6]} 3... Bg7 {[%clk 0:03:00.2]} 4.
O-O {[%clk 0:03:02.4]} 4... e5 {[%clk 0:03:00.7]} 5. d3 {[%clk 0:03:03]} 5...
Nc6 {[%clk 0:02:59.9]} 6. Nbd2 {[%clk 0:03:03.4]} 6... Nge7 {[%clk 0:02:59.7]}
7. e4 {[%clk 0:03:03]} 7... O-O {[%clk 0:02:59.3]} 8. c3 {[%clk 0:03:03.2]} 8...
a5 {[%clk 0:02:58.5]} 9. Qc2 {[%clk 0:03:01.8]} 9... h6 {[%clk 0:02:57.6]} 10.
b3 {[%clk 0:03:00.8]} 10... Be6 {[%clk 0:02:54.9]} 11. Bb2 {[%clk 0:02:59.8]}
11... g5 {[%clk 0:02:55.5]} 12. a3 {[%clk 0:02:58.6]} 12... Ng6 {[%clk
0:02:53.7]} 13. b4 {[%clk 0:02:55.8]} 13... g4 {[%clk 0:02:53.7]} 14. Ne1 {[%clk
0:02:54.3]} 14... axb4 {[%clk 0:02:51.9]} 15. axb4 {[%clk 0:02:53.1]} 15... Rxa1
{[%clk 0:02:51.1]} 16. Bxa1 {[%clk 0:02:54]} 16... d4 {[%clk 0:02:51.5]} 17. Nb3
{[%clk 0:02:47.9]} 17... dxc3 {[%clk 0:02:44.2]} 18. Bxc3 {[%clk 0:02:46.7]}
18... Bxb3 {[%clk 0:02:34.8]} 19. Qxb3 {[%clk 0:02:46.2]} 19... Nd4 {[%clk
0:02:35.7]} 20. Qd1 {[%clk 0:02:42.4]} 20... Qd7 {[%clk 0:02:29.6]} 21. Nc2
{[%clk 0:02:41.3]} 21... Nb5 {[%clk 0:02:25.9]} 22. Bb2 {[%clk 0:02:38.9]} 22...
Rd8 {[%clk 0:02:26.4]} 23. Ne3 {[%clk 0:02:38.6]} 23... h5 {[%clk 0:02:26.2]}
24. Qa4 {[%clk 0:02:24.8]} 24... Nd4 {[%clk 0:01:58.9]} 25. Qxd7 {[%clk
0:02:23.4]} 25... Rxd7 {[%clk 0:01:59.8]} 26. Ra1 {[%clk 0:02:16.8]} 26... Bf8
{[%clk 0:01:58.1]} 27. Nd5 {[%clk 0:02:13.4]} 27... Kg7 {[%clk 0:01:53.5]} 28.
Bxd4 {[%clk 0:02:12.7]} 28... exd4 {[%clk 0:01:54.4]} 29. b5 {[%clk 0:02:09]}
29... c6 {[%clk 0:01:45.8]} 30. Nb6 {[%clk 0:02:08.6]} 30... Rd8 {[%clk
0:01:38.2]} 31. bxc6 {[%clk 0:02:05.2]} 31... bxc6 {[%clk 0:01:39.1]} 32. Nc4
{[%clk 0:02:03.3]} 32... Rb8 {[%clk 0:01:35.5]} 33. h3 {[%clk 0:01:56.8]} 33...
gxh3 {[%clk 0:01:27.6]} 34. Bxh3 {[%clk 0:01:56.7]} 34... h4 {[%clk 0:01:25.1]}
35. Ra7 {[%clk 0:01:48.6]} 35... hxg3 {[%clk 0:01:21]} 36. fxg3 {[%clk
0:01:48.4]} 36... Rb3 {[%clk 0:01:15]} 37. Bf1 {[%clk 0:01:45.4]} 37... Rc3
{[%clk 0:01:06.7]} 38. Rc7 {[%clk 0:01:40.5]} 38... c5 {[%clk 0:01:06.4]} 39.
Rb7 {[%clk 0:01:31.4]} 39... Be7 {[%clk 0:00:56.8]} 40. Kf2 {[%clk 0:01:25.5]}
40... Bf6 {[%clk 0:00:54]} 41. Ke2 {[%clk 0:01:09.1]} 41... Rc2+ {[%clk
0:00:52.3]} 42. Kf3 {[%clk 0:01:07.7]} 42... Bg5 {[%clk 0:00:46.4]} 43. Bh3
{[%clk 0:00:59.9]} 43... Be7 {[%clk 0:00:29.2]} 44. Bf5 {[%clk 0:00:57.9]} 44...
Bf6 {[%clk 0:00:19.1]} 45. Bxg6 {[%clk 0:00:55.6]} 45... Kxg6 {[%clk 0:00:20]}
46. e5 {[%clk 0:00:53.2]} 46... Bg5 {[%clk 0:00:18.7]} 47. Ke4 {[%clk
0:00:48.5]} 47... Re2+ {[%clk 0:00:11.5]} 48. Kd5 {[%clk 0:00:48.3]} 48... Rg2
{[%clk 0:00:12.4]} 49. Kxc5 {[%clk 0:00:47]} 49... Rxg3 {[%clk 0:00:11.1]} 50.
Kxd4 {[%clk 0:00:47.3]} 50... Rg4+ {[%clk 0:00:11.1]} 51. Kd5 {[%clk 0:00:47.1]}
51... f6 {[%clk 0:00:11.5]} 52. e6 {[%clk 0:00:45.1]} 52... Rg1 {[%clk
0:00:11.7]} 53. Nd6 {[%clk 0:00:42]} 53... Re1 {[%clk 0:00:11.9]} 54. e7 {[%clk
0:00:35.4]} 54... f5 {[%clk 0:00:11.9]} 55. e8=Q+ {[%clk 0:00:34.6]} 55... Rxe8
{[%clk 0:00:11.3]} 56. Nxe8 {[%clk 0:00:35.5]} 56... f4 {[%clk 0:00:11.9]} 57.
Ke4 {[%clk 0:00:35.3]} 1-0

[Event "*** Titled Tuesday Blitz"]
[Site "Chess.com"]
[Date "2020.11.03"]
[Round "9"]
[White "Legendinunknown"]
[Black "m_ezat"]
[Result "1-0"]
[WhiteElo "2687"]
[BlackElo "2540"]
[TimeControl "180+1"]
[EndTime "11:49:31 PST"]
[Termination "Legendinunknown won by checkmate"]

1. d4 {[%clk 0:03:00.9]} 1... Nf6 {[%clk 0:02:59.3]} 2. c4 {[%clk 0:02:58.8]}
2... g6 {[%clk 0:02:59.7]} 3. Nc3 {[%clk 0:02:57.9]} 3... Bg7 {[%clk 0:02:59.6]}
4. e4 {[%clk 0:02:57.5]} 4... d6 {[%clk 0:03:00.1]} 5. Nf3 {[%clk 0:02:55.7]}
5... O-O {[%clk 0:03:00.2]} 6. Be2 {[%clk 0:02:53.6]} 6... e5 {[%clk 0:03:00]}
7. d5 {[%clk 0:02:51.9]} 7... a5 {[%clk 0:02:58.4]} 8. Bg5 {[%clk 0:02:50.3]}
8... Na6 {[%clk 0:02:56.1]} 9. Nd2 {[%clk 0:02:48.1]} 9... Nc5 {[%clk
0:02:56.1]} 10. O-O {[%clk 0:02:38.8]} 10... c6 {[%clk 0:02:55.8]} 11. b3 {[%clk
0:02:30]} 11... Qb6 {[%clk 0:02:39.3]} 12. a3 {[%clk 0:02:27.2]} 12... Bd7
{[%clk 0:02:27]} 13. Rb1 {[%clk 0:02:07.3]} 13... h6 {[%clk 0:02:13.2]} 14. Be3
{[%clk 0:02:05.5]} 14... cxd5 {[%clk 0:02:11.9]} 15. cxd5 {[%clk 0:02:00]} 15...
Qc7 {[%clk 0:02:10.6]} 16. Rc1 {[%clk 0:01:57]} 16... Rfb8 {[%clk 0:02:00.4]}
17. b4 {[%clk 0:01:52]} 17... axb4 {[%clk 0:01:40.5]} 18. axb4 {[%clk
0:01:52.9]} 18... Na4 {[%clk 0:01:36.6]} 19. Nxa4 {[%clk 0:01:49.1]} 19... Qd8
{[%clk 0:01:28.3]} 20. Nb6 {[%clk 0:01:48.1]} 20... Ra2 {[%clk 0:01:27.6]} 21.
Ra1 {[%clk 0:01:20.4]} 21... Rb2 {[%clk 0:01:25.2]} 22. Rb1 {[%clk 0:01:16.6]}
22... Rxb1 {[%clk 0:01:18.6]} 23. Qxb1 {[%clk 0:01:15.9]} 23... Ng4 {[%clk
0:01:13]} 24. Nxd7 {[%clk 0:01:00.3]} 24... Qxd7 {[%clk 0:01:11.6]} 25. Bxg4
{[%clk 0:01:00]} 25... Qxg4 {[%clk 0:01:11.4]} 26. Nc4 {[%clk 0:01:00.5]} 26...
Qd7 {[%clk 0:01:08]} 27. Qa2 {[%clk 0:00:58.1]} 27... f5 {[%clk 0:01:05.5]} 28.
f3 {[%clk 0:00:56.6]} 28... Rf8 {[%clk 0:01:05.1]} 29. Qa5 {[%clk 0:00:42.8]}
29... Kh7 {[%clk 0:00:58.8]} 30. Nb6 {[%clk 0:00:38.8]} 30... Qc7 {[%clk
0:00:55.3]} 31. Rc1 {[%clk 0:00:36.7]} 31... Qf7 {[%clk 0:00:55.2]} 32. Nc8
{[%clk 0:00:31.5]} 32... Qd7 {[%clk 0:00:43.7]} 33. Qc7 {[%clk 0:00:27]} 33...
Qb5 {[%clk 0:00:44.1]} 34. Nxd6 {[%clk 0:00:20.6]} 34... Qe2 {[%clk 0:00:44]}
35. Qc3 {[%clk 0:00:19.7]} 35... h5 {[%clk 0:00:39.4]} 36. Qd2 {[%clk 0:00:19]}
36... Qa6 {[%clk 0:00:38.2]} 37. Nc4 {[%clk 0:00:19.2]} 37... fxe4 {[%clk
0:00:37.4]} 38. fxe4 {[%clk 0:00:20.1]} 38... Rc8 {[%clk 0:00:32.7]} 39. Na5
{[%clk 0:00:19.5]} 39... Rf8 {[%clk 0:00:29.5]} 40. d6 {[%clk 0:00:18.6]} 40...
Bf6 {[%clk 0:00:25]} 41. d7 {[%clk 0:00:18.8]} 41... Bd8 {[%clk 0:00:24.9]} 42.
Nc4 {[%clk 0:00:17.8]} 42... Rf7 {[%clk 0:00:20]} 43. Nxe5 {[%clk 0:00:17.7]}
43... Re7 {[%clk 0:00:19.9]} 44. Nf3 {[%clk 0:00:17.6]} 44... Rxe4 {[%clk
0:00:16.4]} 45. Ng5+ {[%clk 0:00:17.8]} 45... Bxg5 {[%clk 0:00:15.9]} 46. Bxg5
{[%clk 0:00:18.7]} 46... Re2 {[%clk 0:00:16]} 47. d8=Q {[%clk 0:00:17.9]} 47...
Rxd2 {[%clk 0:00:15.5]} 48. Rc7+ {[%clk 0:00:17.8]} 48... Rd7 {[%clk 0:00:12.5]}
49. Rxd7# {[%clk 0:00:18.1]} 1-0

[Event "*** Titled Tuesday Blitz"]
[Site "Chess.com"]
[Date "2020.11.03"]
[Round "9"]
[White "guillembaches"]
[Black "GameOverBro"]
[Result "0-1"]
[WhiteElo "2378"]
[BlackElo "2529"]
[TimeControl "180+1"]
[EndTime "11:49:33 PST"]
[Termination "GameOverBro won by resignation"]

1. e4 {[%clk 0:03:00.9]} 1... d6 {[%clk 0:02:55.6]} 2. d4 {[%clk 0:03:00.3]}
2... Nf6 {[%clk 0:02:54.4]} 3. f3 {[%clk 0:03:00.3]} 3... e5 {[%clk 0:02:52]} 4.
Ne2 {[%clk 0:03:00.4]} 4... c6 {[%clk 0:02:44.2]} 5. c4 {[%clk 0:03:00.2]} 5...
Nbd7 {[%clk 0:02:43]} 6. Nbc3 {[%clk 0:03:00.4]} 6... h5 {[%clk 0:02:38.3]} 7.
Be3 {[%clk 0:03:00]} 7... a5 {[%clk 0:02:37.6]} 8. Qd2 {[%clk 0:02:59.9]} 8...
a4 {[%clk 0:02:34.8]} 9. Nc1 {[%clk 0:02:51.3]} 9... Qa5 {[%clk 0:02:33.8]} 10.
Nd3 {[%clk 0:02:48.4]} 10... Be7 {[%clk 0:02:32]} 11. d5 {[%clk 0:02:45.2]}
11... Bd8 {[%clk 0:02:31.7]} 12. Be2 {[%clk 0:02:32]} 12... Bb6 {[%clk
0:02:27.2]} 13. Nf2 {[%clk 0:02:24.1]} 13... Bxe3 {[%clk 0:02:16.9]} 14. Qxe3
{[%clk 0:02:23.9]} 14... Nc5 {[%clk 0:02:16.8]} 15. O-O {[%clk 0:02:21.2]} 15...
cxd5 {[%clk 0:02:12.8]} 16. exd5 {[%clk 0:02:14]} 16... Bf5 {[%clk 0:02:05.8]}
17. Nfe4 {[%clk 0:02:09.2]} 17... Bxe4 {[%clk 0:02:03.2]} 18. fxe4 {[%clk
0:02:04.9]} 18... Qb4 {[%clk 0:01:57.4]} 19. Rab1 {[%clk 0:01:56.5]} 19... h4
{[%clk 0:01:32]} 20. Kh1 {[%clk 0:01:50.4]} 20... Rh6 {[%clk 0:01:29.4]} 21. Rf2
{[%clk 0:01:37.9]} 21... Ra6 {[%clk 0:01:26.2]} 22. h3 {[%clk 0:01:36.2]} 22...
Rb6 {[%clk 0:01:26.2]} 23. Kh2 {[%clk 0:01:26.4]} 23... Rg6 {[%clk 0:01:23.9]}
24. Rf3 {[%clk 0:01:11.9]} 24... Kf8 {[%clk 0:00:56.6]} 25. Qf2 {[%clk
0:01:11.4]} 25... Rh6 {[%clk 0:00:46]} 26. Re3 {[%clk 0:01:05.9]} 26... Kg8
{[%clk 0:00:43.2]} 27. Qf5 {[%clk 0:00:57.8]} 27... Rg6 {[%clk 0:00:30.4]} 28.
b3 {[%clk 0:00:54.3]} 28... axb3 {[%clk 0:00:28.5]} 29. axb3 {[%clk 0:00:53.6]}
29... Qa3 {[%clk 0:00:27.7]} 30. Nb5 {[%clk 0:00:48.6]} 30... Qa2 {[%clk
0:00:23.7]} 31. Rf1 {[%clk 0:00:46.4]} 31... Ncxe4 {[%clk 0:00:23.3]} 32. Bf3
{[%clk 0:00:28]} 32... Qd2 {[%clk 0:00:22.2]} 33. Bxe4 {[%clk 0:00:25.4]} 33...
Qxe3 {[%clk 0:00:22]} 34. Qc8+ {[%clk 0:00:25.6]} 34... Kh7 {[%clk 0:00:22.2]}
35. Bxg6+ {[%clk 0:00:25.6]} 35... fxg6 {[%clk 0:00:22]} 36. Qc7 {[%clk
0:00:25.6]} 36... Qg3+ {[%clk 0:00:16.4]} 37. Kh1 {[%clk 0:00:25.2]} 37... Rxb5
{[%clk 0:00:15.1]} 38. cxb5 {[%clk 0:00:25.6]} 38... Ne4 {[%clk 0:00:14.3]} 39.
Qc2 {[%clk 0:00:23.3]} 39... Qe3 {[%clk 0:00:12.5]} 40. Qd1 {[%clk 0:00:21.3]}
40... Ng3+ {[%clk 0:00:12]} 41. Kh2 {[%clk 0:00:21.9]} 41... Nxf1+ {[%clk
0:00:12.5]} 42. Qxf1 {[%clk 0:00:22.8]} 42... Qf4+ {[%clk 0:00:12.4]} 43. Qxf4
{[%clk 0:00:23.1]} 43... exf4 {[%clk 0:00:13.3]} 44. Kg1 {[%clk 0:00:23.2]}
44... g5 {[%clk 0:00:13.9]} 45. Kf2 {[%clk 0:00:23.9]} 45... Kg6 {[%clk
0:00:14.6]} 46. Kf3 {[%clk 0:00:24.5]} 46... Kf5 {[%clk 0:00:15.2]} 47. b6
{[%clk 0:00:23.8]} 47... g6 {[%clk 0:00:14.8]} 48. b4 {[%clk 0:00:23]} 48... g4+
{[%clk 0:00:09.7]} 49. hxg4+ {[%clk 0:00:22.6]} 49... Ke5 {[%clk 0:00:10.3]} 50.
g5 {[%clk 0:00:22.5]} 50... Kf5 {[%clk 0:00:10.3]} 0-1

[Event "*** Titled Tuesday Blitz"]
[Site "Chess.com"]
[Date "2020.11.03"]
[Round "9"]
[White "Fins0905"]
[Black "FontVella8"]
[Result "0-1"]
[WhiteElo "2599"]
[BlackElo "2498"]
[TimeControl "180+1"]
[EndTime "11:49:40 PST"]
[Termination "FontVella8 won on time"]

1. c4 {[%clk 0:03:00.9]} 1... e5 {[%clk 0:02:59]} 2. g3 {[%clk 0:02:58.7]} 2...
d6 {[%clk 0:02:58.2]} 3. Bg2 {[%clk 0:02:58.6]} 3... Nc6 {[%clk 0:02:58.2]} 4.
Nc3 {[%clk 0:02:58]} 4... Be6 {[%clk 0:02:58.7]} 5. Nd5 {[%clk 0:02:43.1]} 5...
Qd7 {[%clk 0:02:56.6]} 6. d3 {[%clk 0:02:40]} 6... Nge7 {[%clk 0:02:56.7]} 7. e3
{[%clk 0:02:29.9]} 7... Nd8 {[%clk 0:02:55.1]} 8. Ne2 {[%clk 0:02:23.9]} 8... c6
{[%clk 0:02:55.3]} 9. Nxe7 {[%clk 0:02:18.6]} 9... Bxe7 {[%clk 0:02:56.2]} 10.
h4 {[%clk 0:02:17.7]} 10... O-O {[%clk 0:02:55.4]} 11. b3 {[%clk 0:02:06.6]}
11... d5 {[%clk 0:02:55.5]} 12. cxd5 {[%clk 0:02:03]} 12... cxd5 {[%clk
0:02:53.4]} 13. d4 {[%clk 0:01:57]} 13... f6 {[%clk 0:02:23.2]} 14. O-O {[%clk
0:01:44.4]} 14... Nc6 {[%clk 0:02:22.3]} 15. Bb2 {[%clk 0:01:38.2]} 15... Rad8
{[%clk 0:02:21.7]} 16. Rc1 {[%clk 0:01:33]} 16... Bh3 {[%clk 0:02:20.3]} 17. Qd2
{[%clk 0:01:26.3]} 17... Bxg2 {[%clk 0:02:19.5]} 18. Kxg2 {[%clk 0:01:26.2]}
18... Qe6 {[%clk 0:02:17.1]} 19. Nc3 {[%clk 0:01:19.3]} 19... Rd7 {[%clk
0:02:13.3]} 20. Na4 {[%clk 0:01:17.2]} 20... Rfd8 {[%clk 0:02:09.5]} 21. Nc5
{[%clk 0:01:11.7]} 21... Bxc5 {[%clk 0:02:09.5]} 22. Rxc5 {[%clk 0:01:12.4]}
22... e4 {[%clk 0:02:06.4]} 23. Ba3 {[%clk 0:00:47.1]} 23... g5 {[%clk 0:01:59]}
24. Rh1 {[%clk 0:00:41]} 24... Rg7 {[%clk 0:01:54.6]} 25. Qe2 {[%clk 0:00:37.8]}
25... Qf5 {[%clk 0:01:39]} 26. hxg5 {[%clk 0:00:28.3]} 26... fxg5 {[%clk
0:01:36]} 27. Rh5 {[%clk 0:00:22.6]} 27... Rf7 {[%clk 0:01:08.4]} 28. Kg1 {[%clk
0:00:15.4]} 28... Rd6 {[%clk 0:00:57]} 29. Rc2 {[%clk 0:00:13.9]} 29... Rdf6
{[%clk 0:00:55.2]} 30. Qf1 {[%clk 0:00:10.2]} 30... Qg4 {[%clk 0:00:52.2]} 31.
Qe2 {[%clk 0:00:06.5]} 31... Rf3 {[%clk 0:00:49]} 32. Rh2 {[%clk 0:00:07]} 32...
h5 {[%clk 0:00:42.5]} 33. Bd6 {[%clk 0:00:06.9]} 33... h4 {[%clk 0:00:39.6]} 34.
Kh1 {[%clk 0:00:05.8]} 34... Rh7 {[%clk 0:00:30.4]} 35. gxh4 {[%clk 0:00:04.1]}
35... Rxh4 {[%clk 0:00:29.9]} 36. Rc1 {[%clk 0:00:04.2]} 36... Rxh2+ {[%clk
0:00:19.5]} 37. Bxh2 {[%clk 0:00:05.1]} 37... Qh4 {[%clk 0:00:19.9]} 38. Rg1
{[%clk 0:00:05]} 38... Kf7 {[%clk 0:00:16]} 39. Rg2 {[%clk 0:00:04.9]} 39... Ne7
{[%clk 0:00:14.6]} 40. Kg1 {[%clk 0:00:04.3]} 40... Rh3 {[%clk 0:00:10.6]} 41.
Qb5 {[%clk 0:00:03.1]} 41... Qh5 {[%clk 0:00:08.7]} 42. Qf1 {[%clk 0:00:02.3]}
42... Qf3 {[%clk 0:00:08.4]} 43. Qe1 {[%clk 0:00:02.2]} 43... Kg6 {[%clk
0:00:06]} 44. Qf1 {[%clk 0:00:02.3]} 44... Nf5 {[%clk 0:00:06.3]} 45. Rg3 {[%clk
0:00:01.3]} 45... Nxg3 {[%clk 0:00:06]} 46. fxg3 {[%clk 0:00:01.7]} 46... Qxe3+
{[%clk 0:00:04.3]} 47. Kg2 {[%clk 0:00:01.8]} 47... Rh7 {[%clk 0:00:02.8]} 48.
Qf8 {[%clk 0:00:01.3]} 48... Qf3+ {[%clk 0:00:03]} 0-1

[Event "*** Titled Tuesday Blitz"]
[Site "Chess.com"]
[Date "2020.11.03"]
[Round "9"]
[White "Susal_De_Silva"]
[Black "ftorodent"]
[Result "0-1"]
[WhiteElo "2522"]
[BlackElo "2672"]
[TimeControl "180+1"]
[EndTime "11:49:42 PST"]
[Termination "ftorodent won by resignation"]

1. e4 {[%clk 0:03:00.9]} 1... c5 {[%clk 0:02:59.1]} 2. Nf3 {[%clk 0:03:01.1]}
2... e6 {[%clk 0:02:58.8]} 3. d4 {[%clk 0:03:00.5]} 3... cxd4 {[%clk 0:02:58.8]}
4. Nxd4 {[%clk 0:03:01.4]} 4... a6 {[%clk 0:02:59.3]} 5. Be2 {[%clk 0:03:01.5]}
5... Nf6 {[%clk 0:02:57.3]} 6. Nc3 {[%clk 0:03:01.9]} 6... d6 {[%clk 0:02:57.6]}
7. O-O {[%clk 0:03:01.8]} 7... Be7 {[%clk 0:02:57.8]} 8. a4 {[%clk 0:03:01.7]}
8... O-O {[%clk 0:02:57.2]} 9. Be3 {[%clk 0:03:02.3]} 9... Nc6 {[%clk 0:02:56]}
10. f4 {[%clk 0:03:01.8]} 10... Qc7 {[%clk 0:02:55.7]} 11. Kh1 {[%clk
0:03:01.6]} 11... Bd7 {[%clk 0:02:52.8]} 12. Qe1 {[%clk 0:03:00.7]} 12... Nxd4
{[%clk 0:02:35.7]} 13. Bxd4 {[%clk 0:03:01.6]} 13... Bc6 {[%clk 0:02:35.2]} 14.
Qg3 {[%clk 0:03:01.5]} 14... g6 {[%clk 0:02:35.4]} 15. Bf3 {[%clk 0:02:46.8]}
15... Rfe8 {[%clk 0:02:17.8]} 16. f5 {[%clk 0:02:42.1]} 16... e5 {[%clk
0:01:58.7]} 17. Be3 {[%clk 0:02:38.9]} 17... b5 {[%clk 0:01:58.6]} 18. Bg5
{[%clk 0:02:28.5]} 18... b4 {[%clk 0:01:56]} 19. Nd5 {[%clk 0:02:23.5]} 19...
Bxd5 {[%clk 0:01:55.2]} 20. exd5 {[%clk 0:02:23.2]} 20... e4 {[%clk 0:01:48.4]}
21. Be2 {[%clk 0:01:41.8]} 21... Nxd5 {[%clk 0:01:42.4]} 22. fxg6 {[%clk
0:01:38.6]} 22... hxg6 {[%clk 0:01:37.9]} 23. Rad1 {[%clk 0:01:36]} 23... Bxg5
{[%clk 0:01:03.1]} 24. Qxg5 {[%clk 0:01:36.9]} 24... Re5 {[%clk 0:01:01.4]} 25.
Qg3 {[%clk 0:01:18.9]} 25... Qxc2 {[%clk 0:00:57]} 26. Bg4 {[%clk 0:01:09.5]}
26... e3 {[%clk 0:00:48.1]} 27. Rc1 {[%clk 0:00:56.2]} 27... e2 {[%clk 0:00:40]}
28. Rfe1 {[%clk 0:00:43.1]} 28... Qxb2 {[%clk 0:00:37.8]} 29. Bf3 {[%clk
0:00:30.3]} 29... Rae8 {[%clk 0:00:35.7]} 30. Rc4 {[%clk 0:00:21.3]} 30... Qd2
{[%clk 0:00:32.2]} 31. Rh4 {[%clk 0:00:20]} 31... Rg5 {[%clk 0:00:21.9]} 32. Qf2
{[%clk 0:00:17.6]} 32... Nc3 {[%clk 0:00:20.3]} 33. Rd4 {[%clk 0:00:13.6]} 33...
Qe3 {[%clk 0:00:19]} 34. Qxe3 {[%clk 0:00:13]} 34... Rxe3 {[%clk 0:00:19]} 35.
Rxd6 {[%clk 0:00:11.8]} 35... Ra5 {[%clk 0:00:16.3]} 36. Rd8+ {[%clk 0:00:09.7]}
36... Kg7 {[%clk 0:00:15.8]} 37. Rd2 {[%clk 0:00:06.4]} 37... Rxa4 {[%clk
0:00:15.3]} 38. Rb2 {[%clk 0:00:07.3]} 38... a5 {[%clk 0:00:14.8]} 39. Kg1
{[%clk 0:00:07.6]} 39... Ra2 {[%clk 0:00:14.9]} 40. Rb3 {[%clk 0:00:07.5]} 40...
Rd2 {[%clk 0:00:14]} 41. Kf2 {[%clk 0:00:07.6]} 41... Re6 {[%clk 0:00:14]} 42.
Bg4 {[%clk 0:00:04.7]} 42... Re5 {[%clk 0:00:13.7]} 43. Kg3 {[%clk 0:00:04.6]}
43... Rd3+ {[%clk 0:00:13.7]} 44. Bf3 {[%clk 0:00:03.9]} 44... Rd4 {[%clk
0:00:12.3]} 45. Kf2 {[%clk 0:00:03.9]} 45... a4 {[%clk 0:00:12.4]} 46. Rxb4
{[%clk 0:00:03.4]} 46... Rxb4 {[%clk 0:00:12.2]} 0-1

[Event "*** Titled Tuesday Blitz"]
[Site "Chess.com"]
[Date "2020.11.03"]
[Round "9"]
[White "JoliyRoger"]
[Black "arminmusovic"]
[Result "0-1"]
[WhiteElo "2366"]
[BlackElo "2553"]
[TimeControl "180+1"]
[EndTime "11:49:42 PST"]
[Termination "arminmusovic won by resignation"]

1. Nf3 {[%clk 0:02:53]} 1... a6 {[%clk 0:02:59.6]} 2. d4 {[%clk 0:02:52.7]} 2...
e6 {[%clk 0:03:00]} 3. e4 {[%clk 0:02:53.1]} 3... d5 {[%clk 0:03:00.5]} 4. Nbd2
{[%clk 0:02:47.5]} 4... c5 {[%clk 0:02:59.6]} 5. exd5 {[%clk 0:02:46.4]} 5...
exd5 {[%clk 0:02:59.7]} 6. dxc5 {[%clk 0:02:42.3]} 6... Nc6 {[%clk 0:02:59.7]}
7. Bd3 {[%clk 0:02:42]} 7... Bxc5 {[%clk 0:02:59]} 8. O-O {[%clk 0:02:42.2]}
8... Nf6 {[%clk 0:02:59.2]} 9. Nb3 {[%clk 0:02:40.9]} 9... Be7 {[%clk
0:02:59.3]} 10. h3 {[%clk 0:02:35.2]} 10... h6 {[%clk 0:02:56.8]} 11. Bf4 {[%clk
0:02:30.2]} 11... O-O {[%clk 0:02:51.6]} 12. Ne5 {[%clk 0:02:30.5]} 12... Nb4
{[%clk 0:02:43.4]} 13. Nd4 {[%clk 0:02:13.9]} 13... Nxd3 {[%clk 0:02:40.1]} 14.
Qxd3 {[%clk 0:02:13.2]} 14... Qb6 {[%clk 0:02:36.1]} 15. Rab1 {[%clk 0:02:07]}
15... Rd8 {[%clk 0:02:25.3]} 16. Rfe1 {[%clk 0:02:02.4]} 16... Bc5 {[%clk
0:02:18.2]} 17. Be3 {[%clk 0:01:49.4]} 17... Qc7 {[%clk 0:02:05.9]} 18. Nef3
{[%clk 0:01:43.2]} 18... Bd7 {[%clk 0:01:47.1]} 19. c3 {[%clk 0:01:41.3]} 19...
Rac8 {[%clk 0:01:41.5]} 20. Rbd1 {[%clk 0:01:41.4]} 20... Bd6 {[%clk 0:01:31.4]}
21. Nf5 {[%clk 0:01:31.1]} 21... Bf8 {[%clk 0:01:22.3]} 22. Bd4 {[%clk
0:01:30.7]} 22... Ne4 {[%clk 0:01:21.1]} 23. Ne3 {[%clk 0:01:31.2]} 23... Bb5
{[%clk 0:01:19.9]} 24. Qb1 {[%clk 0:01:27.2]} 24... Bc6 {[%clk 0:01:10.7]} 25.
Ne5 {[%clk 0:01:17.1]} 25... Ba4 {[%clk 0:00:58.4]} 26. Rc1 {[%clk 0:01:11.8]}
26... Be8 {[%clk 0:00:57.9]} 27. Qd3 {[%clk 0:01:04.3]} 27... f6 {[%clk
0:00:56.2]} 28. Nf3 {[%clk 0:01:03.6]} 28... Nc5 {[%clk 0:00:53.6]} 29. Bxc5
{[%clk 0:00:58.2]} 29... Qxc5 {[%clk 0:00:51.5]} 30. Nd4 {[%clk 0:00:58.8]}
30... Bf7 {[%clk 0:00:50.7]} 31. Nef5 {[%clk 0:00:57.2]} 31... Re8 {[%clk
0:00:47.7]} 32. Qg3 {[%clk 0:00:57]} 32... Kh8 {[%clk 0:00:45.2]} 33. Qf3 {[%clk
0:00:40.8]} 33... Qc4 {[%clk 0:00:43.4]} 34. a3 {[%clk 0:00:39.8]} 34... Qc7
{[%clk 0:00:37.2]} 35. Qg4 {[%clk 0:00:33.9]} 35... Qd7 {[%clk 0:00:35.2]} 36.
Qf3 {[%clk 0:00:33.1]} 36... Rxe1+ {[%clk 0:00:32.6]} 37. Rxe1 {[%clk 0:00:33]}
37... Re8 {[%clk 0:00:33.2]} 38. Rd1 {[%clk 0:00:33]} 38... Re5 {[%clk
0:00:32.4]} 39. Ne3 {[%clk 0:00:33.2]} 39... Bc5 {[%clk 0:00:28.5]} 40. Ndc2
{[%clk 0:00:31.6]} 40... Ba7 {[%clk 0:00:27.4]} 41. Nd4 {[%clk 0:00:31.8]} 41...
Bb8 {[%clk 0:00:23.5]} 42. Rd2 {[%clk 0:00:30.2]} 42... Qc7 {[%clk 0:00:22.9]}
43. g3 {[%clk 0:00:25.7]} 43... Qd7 {[%clk 0:00:23.4]} 44. Kg2 {[%clk
0:00:24.8]} 44... Bg6 {[%clk 0:00:23.8]} 45. Kh2 {[%clk 0:00:21]} 45... Be4
{[%clk 0:00:24]} 46. Qg4 {[%clk 0:00:21.6]} 46... f5 {[%clk 0:00:24.3]} 47. Qh4
{[%clk 0:00:21.2]} 47... Qe8 {[%clk 0:00:19.5]} 48. Ne2 {[%clk 0:00:20.6]} 48...
Kh7 {[%clk 0:00:18.5]} 49. Nf4 {[%clk 0:00:06.2]} 49... g5 {[%clk 0:00:18]} 50.
Qh5 {[%clk 0:00:06.8]} 50... gxf4 {[%clk 0:00:17.2]} 51. Qxe8 {[%clk 0:00:07]}
51... Rxe8 {[%clk 0:00:18.1]} 52. gxf4 {[%clk 0:00:07.8]} 52... Bxf4+ {[%clk
0:00:18.1]} 53. Kg1 {[%clk 0:00:08.3]} 53... Rg8+ {[%clk 0:00:17.8]} 54. Kf1
{[%clk 0:00:09.2]} 54... Bxe3 {[%clk 0:00:17.9]} 0-1